fUST/lending_fUST_20260107
["ID","MTS","AMOUNT","RATE_DAILY","PERIOD"]
[400682727,1767778272707,-500.0,0.00028219,2]
[400682728,1767778272716,-500.0,0.00028219,2]
[400682729,1767778272725,-500.0,0.00028219,2]
[400682730,1767778272735,-493.12915307,0.00028219,2]
[400682731,1767778272744,-500.0,0.00028219,2]
[400682732,1767778272754,-500.0,0.00028219,2]
[400682733,1767778272763,-500.0,0.00028219,2]
[400682734,1767778272772,-500.0,0.00028219,2]
[400682735,1767778272782,-500.0,0.00028219,2]
[400682736,1767778272791,-836.4,0.00028219,2]
[400682737,1767778272800,-550.76751835,0.00028219,2]
[400682738,1767778272810,-853.68,0.00028219,2]
[400682739,1767778272819,-689.83,0.00028219,2]
[400682740,1767778272829,-500.0,0.00028219,2]
[400682741,1767778272838,-500.0,0.00028219,2]
[400682742,1767778272847,-500.0,0.00028219,2]
[400682743,1767778272857,-500.0,0.00028219,2]
[400682744,1767778272866,-500.0,0.00028219,2]
[400682745,1767778272875,-500.0,0.00028219,2]
[400682746,1767778272885,-481.2305202,0.00028219,2]
[400682747,1767778272894,-500.0,0.00028219,2]
[400682748,1767778272903,-500.0,0.00028219,2]
[400682749,1767778272912,-500.0,0.00028219,2]
[400682750,1767778272921,-500.0,0.00028219,2]
[400682751,1767778272931,-500.0,0.00028219,2]
[400682752,1767778272941,-500.0,0.00028219,2]
[400682753,1767778272950,-500.0,0.00028219,2]
[400682754,1767778272960,-690.11,0.00028219,2]
[400682755,1767778272969,-500.0,0.00028219,2]
[400682756,1767778272978,-500.0,0.00028219,2]
[400682757,1767778272988,-541.4152828,0.00028219,2]
[400682758,1767778272997,-500.0,0.00028219,2]
[400682759,1767778273006,-500.0,0.00028219,2]
[400682760,1767778273015,-500.0,0.00028219,2]
[400682761,1767778273024,-500.0,0.00028219,2]
[400682762,1767778273034,-500.0,0.00028219,2]
[400682763,1767778273043,-500.0,0.00028219,2]
[400682764,1767778273053,-731.35,0.00028219,2]
[400682765,1767778273063,-3088.57,0.00028219,2]
[400682766,1767778273073,-597.46213221,0.00028228,2]
[400682767,1767778273082,-357.4,0.000283,2]
[400682768,1767778273091,-500.0,0.00028386,7]
[400682769,1767778273101,-5597.0348848,0.00028493,2]
[400682770,1767778273111,-500.0,0.00028493,2]
[400682771,1767778273120,-500.0,0.00028493,2]
[400682772,1767778273130,-470.5370977,0.00028493,2]
[400682773,1767778273140,-836.74,0.00028493,2]
[400682774,1767778273149,-500.0,0.00028493,2]
[400682775,1767778273158,-500.0,0.00028493,2]
[400682776,1767778273168,-406.29224647,0.00028493,2]
[400682777,1767778273177,-346.16559859,0.00028493,2]
[400682778,1767778273186,-500.0,0.00028493,2]
[400682779,1767778273196,-500.0,0.00028493,2]
[400682780,1767778273207,-500.0,0.00028493,2]
[400682781,1767778273227,-500.0,0.00028493,2]
[400682782,1767778273238,-525.68506913,0.00028493,2]
[400682783,1767778273248,-500.0,0.00028493,2]
[400682784,1767778273257,-500.0,0.00028493,2]
[400682785,1767778273266,-500.0,0.00028493,2]
[400682786,1767778273276,-500.0,0.00028493,2]
[400682787,1767778273285,-500.0,0.00028493,2]
[400682788,1767778273294,-360.48511465,0.00028493,2]
[400682789,1767778273304,-465.53445705,0.00028493,2]
[400682790,1767778273314,-494.64547294,0.00028493,2]
[400682791,1767778273323,-500.0,0.00028493,2]
[400682792,1767778273332,-500.0,0.00028493,2]
[400682793,1767778273342,-587.76396083,0.00028493,2]
[400682794,1767778273351,-195.02693897,0.00028493,2]
[400682795,1767778273360,-562.09533006,0.00028493,2]
[400682796,1767778273370,-365.39740184,0.00028493,2]
[400682797,1767778273380,-500.0,0.00028493,2]
[400682798,1767778273389,-500.0,0.00028493,2]
[400682799,1767778273398,-151.0,0.00028493,7]
[400682800,1767778273408,-500.0,0.00028493,2]
[400682801,1767778273420,-500.0,0.00028493,2]
[400682802,1767778273431,-338.06156399,0.00028493,2]
[400682803,1767778273440,-207.04406824,0.00028493,2]
[400682804,1767778273456,-151.0,0.00028493,7]
[400682805,1767778273472,-548.79,0.00028493,2]
[400682806,1767778273481,-500.0,0.00028493,2]
[400682807,1767778273491,-500.0,0.00028493,2]
[400682808,1767778273502,-500.0,0.00028493,2]
[400682809,1767778273516,-1259.06871591,0.00028493,5]
[400682810,1767778273525,-500.0,0.00028493,2]
[400682811,1767778273534,-567.30576504,0.00028493,2]
[400682812,1767778273544,-500.0,0.00028493,2]
[400682813,1767778273554,-500.0,0.00028493,2]
[400682814,1767778273563,-300.0,0.00028493,7]
[400682815,1767778273573,-500.0,0.00028493,2]
[400682816,1767778273584,-308.09106242,0.00028493,2]
[400682817,1767778273593,-300.0,0.00028493,7]
[400682818,1767778273602,-300.0,0.00028493,7]
[400682819,1767778273612,-538.56275793,0.00028493,2]
[400682820,1767778273622,-300.0,0.00028493,7]
[400682821,1767778273631,-500.0,0.00028493,2]
[400682822,1767778273640,-257.71828862,0.00028493,2]
[400682823,1767778273649,-500.0,0.00028493,2]
[400682824,1767778273659,-576.04529452,0.00028493,2]
[400682826,1767778273669,-500.0,0.00028493,2]
[400682827,1767778273678,-500.0,0.00028493,2]
[400682828,1767778273687,-500.0,0.00028493,2]
[400682829,1767778273696,-500.0,0.00028493,2]
[400682830,1767778273705,-500.0,0.00028493,2]
[400682831,1767778273715,-180.24400805,0.00028493,2]
[400682832,1767778273724,-500.0,0.00028493,2]
[400682833,1767778273732,-500.0,0.00028493,2]
[400682834,1767778273741,-224.28751616,0.00028493,2]
[400682835,1767778273752,-500.0,0.00028493,2]
[400682836,1767778273763,-913.08,0.00028493,2]
[400682837,1767778273772,-500.0,0.00028493,2]
[400682838,1767778273781,-175.1016287,0.00028493,2]
[400682839,1767778273791,-500.0,0.00028493,2]
[400682840,1767778273800,-500.0,0.00028493,2]
[400682841,1767778273809,-500.0,0.00028493,2]
[400682842,1767778273819,-151.0,0.00028493,7]
[400682843,1767778273828,-467.59208785,0.00028493,2]
[400682844,1767778273837,-151.0,0.00028493,7]
[400682845,1767778273847,-559.4572558,0.00028493,2]
[400682846,1767778273856,-151.0,0.00028493,7]
[400682847,1767778273865,-557.84,0.00028493,2]
[400682848,1767778273874,-500.0,0.00028493,2]
[400682849,1767778273883,-532.28969809,0.00028493,2]
[400682850,1767778273893,-500.0,0.00028493,2]
[400682851,1767778273902,-500.0,0.00028493,2]
[400682852,1767778273911,-500.0,0.00028493,2]
[400682853,1767778273919,-362.31772232,0.00028493,2]
[400682854,1767778273930,-151.0,0.00028493,7]
[400682855,1767778273950,-151.0,0.00028493,7]
[400682856,1767778273960,-500.0,0.00028493,2]
[400682857,1767778273969,-584.55274678,0.00028493,2]
[400682858,1767778273978,-151.0,0.00028493,7]
[400682859,1767778273987,-151.0,0.00028493,7]
[400682860,1767778273996,-500.0,0.00028493,2]
[400682861,1767778274007,-500.0,0.00028493,2]
[400682862,1767778274017,-569.22689749,0.00028493,2]
[400682863,1767778274028,-500.0,0.00028493,2]
[400682864,1767778274037,-255.17771832,0.00028493,2]
[400682865,1767778274047,-508.61565293,0.00028493,2]
[400682866,1767778274056,-151.0,0.00028493,7]
[400682867,1767778274077,-500.0,0.00028493,2]
[400682868,1767778274087,-500.0,0.00028493,2]
[400682869,1767778274098,-7578.24763289,0.00028493,5]
[400682870,1767778274242,-324.83913414,0.00028493,2]
[400682871,1767778274251,-500.0,0.00028493,2]
[400682872,1767778274260,-153.89876055,0.00028493,2]
[400682873,1767778274271,-500.0,0.00028493,2]
[400682874,1767778274280,-500.0,0.00028493,2]
[400682875,1767778274291,-872.60766446,0.00028493,5]
[400682876,1767778274300,-500.0,0.00028493,2]
[400682877,1767778274309,-540.12053322,0.00028493,2]
[400682878,1767778274321,-500.0,0.00028493,2]
[400682879,1767778274331,-500.0,0.00028493,2]
[400682880,1767778274340,-603.11925215,0.00028493,2]
[400682881,1767778274350,-500.0,0.00028493,2]
[400682882,1767778274360,-582.96883831,0.00028493,2]
[400682883,1767778274370,-433.25646612,0.00028493,2]
[400682884,1767778274379,-270.92885044,0.00028493,2]
[400682885,1767778274389,-500.0,0.00028493,2]
[400682886,1767778274399,-500.0,0.00028493,2]
[400682887,1767778274408,-567.85923001,0.00028493,2]
[400682888,1767778274418,-591.07924486,0.00028493,2]
[400682889,1767778274427,-500.0,0.00028493,2]
[400682890,1767778274437,-500.0,0.00028493,2]
[400682891,1767778274447,-500.0,0.00028493,2]
[400682892,1767778274456,-500.0,0.00028493,2]
[400682893,1767778274465,-500.0,0.00028493,2]
[400682894,1767778274475,-500.0,0.00028493,2]
[400682895,1767778274484,-500.0,0.00028493,2]
[400682896,1767778274494,-500.0,0.00028493,2]
[400682897,1767778274504,-637.59,0.00028493,2]
[400682898,1767778274518,-196.47222354,0.00028493,2]
[400682899,1767778274527,-521.34045047,0.00028493,2]
[400682900,1767778274537,-500.0,0.00028493,2]
[400682901,1767778274546,-173.1065143,0.00028493,2]
[400682902,1767778274556,-502.85593356,0.00028493,2]
[400682903,1767778274566,-500.0,0.00028493,2]
[400682904,1767778274576,-500.0,0.00028493,2]
[400682905,1767778274586,-500.0,0.00028493,2]
[400682906,1767778274596,-566.30260769,0.00028493,2]
[400682907,1767778274606,-500.0,0.00028493,2]
[400682908,1767778274616,-1000.0,0.00028493,2]
[400682909,1767778274626,-500.0,0.00028493,2]
[400682910,1767778274635,-500.0,0.00028493,2]
[400682911,1767778274645,-500.0,0.00028493,2]
[400682912,1767778274654,-500.0,0.00028493,2]
[400682913,1767778274664,-404.10391117,0.00028493,2]
[400682914,1767778274674,-500.0,0.00028493,2]
[400682915,1767778274684,-500.0,0.00028493,2]
[400682916,1767778274694,-500.0,0.00028493,2]
[400682917,1767778274703,-500.0,0.00028493,2]
[400682918,1767778274712,-571.05933259,0.00028493,2]
[400682919,1767778274721,-500.0,0.00028493,2]
[400682920,1767778274730,-500.0,0.00028493,2]
[400682921,1767778274739,-500.0,0.00028493,2]
[400682922,1767778274748,-500.0,0.00028493,2]
[400682923,1767778274758,-569.37040337,0.00028493,2]
[400682924,1767778274767,-500.0,0.00028493,2]
[400682925,1767778274776,-500.0,0.00028493,2]
[400682926,1767778274785,-500.0,0.00028493,2]
[400682927,1767778274795,-516.38193011,0.00028493,2]
[400682928,1767778274804,-500.0,0.00028493,2]
[400682929,1767778274813,-500.0,0.00028493,2]
[400682930,1767778274822,-170.02326745,0.00028493,2]
[400682931,1767778274832,-500.0,0.00028493,2]
[400682932,1767778274842,-500.0,0.00028493,2]
[400682933,1767778274851,-500.0,0.00028493,2]
[400682934,1767778274861,-500.0,0.00028493,2]
[400682935,1767778274870,-500.0,0.00028493,2]
[400682936,1767778274880,-500.0,0.00028493,2]
[400682937,1767778274890,-324.59959195,0.00028493,2]
[400682938,1767778274900,-500.0,0.00028493,2]
[400682939,1767778274909,-347.45828646,0.00028493,2]
[400682940,1767778274919,-3962.5,0.00028493,2]
[400682941,1767778274928,-196.0651271,0.00028493,2]
[400682942,1767778274937,-181.29761316,0.00028493,2]
[400682943,1767778274947,-500.0,0.00028493,2]
[400682944,1767778274956,-500.0,0.00028493,2]
[400682945,1767778274966,-582.84,0.00028493,2]
[400682946,1767778274975,-500.0,0.00028493,2]
[400682947,1767778274984,-459.64619749,0.00028493,2]
[400682948,1767778274993,-500.0,0.00028493,2]
[400682949,1767778275003,-258.34773752,0.00028493,2]
[400682950,1767778275012,-500.0,0.00028493,2]
[400682951,1767778275022,-305.31019872,0.00028493,2]
[400682952,1767778275032,-500.0,0.00028493,2]
[400682953,1767778275042,-500.0,0.00028493,2]
[400682954,1767778275053,-444.37026315,0.00028493,2]
[400682955,1767778275062,-500.0,0.00028493,2]
[400682956,1767778275072,-500.0,0.00028493,2]
[400682957,1767778275082,-500.0,0.00028493,2]
[400682958,1767778275091,-500.0,0.00028493,2]
[400682959,1767778275101,-500.0,0.00028493,2]
[400682960,1767778275111,-500.0,0.00028493,2]
[400682961,1767778275120,-500.0,0.00028493,2]
[400682962,1767778275130,-500.0,0.00028493,2]
[400682963,1767778275139,-725.03,0.00028493,2]
[400682964,1767778275148,-500.0,0.00028493,2]
[400682965,1767778275158,-500.0,0.00028493,2]
[400682966,1767778275168,-500.0,0.00028493,2]
[400682967,1767778275177,-549.67284474,0.00028493,2]
[400682968,1767778275186,-184.812283,0.00028493,7]
[400682969,1767778275196,-328.26880042,0.00028493,2]
[400682970,1767778275206,-184.812283,0.00028493,7]
[400682971,1767778275216,-500.0,0.00028493,2]
[400682972,1767778275225,-184.812283,0.00028493,7]
[400682973,1767778275234,-184.812283,0.00028493,7]
[400682974,1767778275244,-500.0,0.00028493,2]
[400682975,1767778275253,-500.0,0.00028493,2]
[400682976,1767778275263,-151.0,0.00028493,7]
[400682977,1767778275273,-151.0,0.00028493,7]
[400682978,1767778275283,-500.0,0.00028493,2]
[400682979,1767778275292,-546.45593612,0.00028493,2]
[400682980,1767778275301,-500.0,0.00028493,2]
[400682981,1767778275311,-500.0,0.00028493,2]
[400682982,1767778275322,-500.0,0.00028493,2]
[400682983,1767778275332,-678.0,0.00028493,2]
[400682984,1767778275341,-500.0,0.00028493,2]
[400682985,1767778275351,-151.0,0.00028493,7]
[400682986,1767778275361,-235.000047,0.00028493,7]
[400682987,1767778275370,-247.352857,0.00028493,7]
[400682988,1767778275379,-247.352857,0.00028493,7]
[400682989,1767778275388,-247.352857,0.00028493,7]
[400682990,1767778275398,-588.96766038,0.00028493,2]
[400682991,1767778275407,-500.0,0.00028493,2]
[400682992,1767778275416,-247.352857,0.00028493,7]
[400682993,1767778275426,-2251.87,0.00028493,2]
[400682994,1767778275435,-1000.0,0.00028493,2]
[400682995,1767778275445,-168.06862482,0.00028493,2]
[400682996,1767778275454,-956.27,0.00028493,2]
[400682997,1767778275464,-500.0,0.00028493,2]
[400682998,1767778275473,-500.0,0.00028493,2]
[400682999,1767778275482,-151.0,0.00028493,7]
[400683000,1767778275491,-335.93426162,0.00028493,2]
[400683001,1767778275500,-500.0,0.00028493,2]
[400683002,1767778275512,-151.0,0.00028493,7]
[400683003,1767778275522,-151.0,0.00028493,7]
[400683004,1767778275531,-500.0,0.00028493,2]
[400683005,1767778275540,-151.0,0.00028493,7]
[400683006,1767778275551,-237.212667,0.00028493,7]
[400683007,1767778275560,-205.742012,0.00028493,7]
[400683008,1767778275573,-151.0,0.00028493,7]
[400683010,1767778275584,-14665.45,0.00028493,2]
[400683011,1767778275594,-205.742012,0.00028493,7]
[400683012,1767778275603,-151.0,0.00028493,7]
[400683014,1767778275612,-205.742012,0.00028493,7]
[400683015,1767778275621,-205.742012,0.00028493,7]
[400683016,1767778275630,-267.31937862,0.00028493,2]
[400683017,1767778275639,-500.0,0.00028493,2]
[400683018,1767778275649,-204.454588,0.00028493,7]
[400683019,1767778275659,-500.0,0.00028493,2]
[400683020,1767778275668,-500.0,0.00028493,2]
[400683021,1767778275677,-1664.343388,0.00028493,7]
[400683022,1767778275686,-500.0,0.00028493,2]
[400683023,1767778275695,-1664.343388,0.00028493,7]
[400683024,1767778275704,-500.0,0.00028493,2]
[400683025,1767778275714,-1664.343388,0.00028493,7]
[400683026,1767778275723,-500.0,0.00028493,2]
[400683027,1767778275732,-151.0,0.00028493,7]
[400683028,1767778275741,-151.0,0.00028493,7]
[400683029,1767778275751,-661.34,0.00028493,2]
[400683030,1767778275760,-500.0,0.00028493,2]
[400683031,1767778275769,-500.0,0.00028493,2]
[400683032,1767778275778,-200.34109386,0.00028493,2]
[400683033,1767778275788,-500.0,0.00028493,2]
[400683034,1767778275797,-1016.281206,0.00028493,7]
[400683035,1767778275806,-1016.281206,0.00028493,7]
[400683036,1767778275817,-1016.281206,0.00028493,7]
[400683037,1767778275826,-1016.281206,0.00028493,7]
[400683038,1767778275836,-500.0,0.00028493,2]
[400683039,1767778275845,-909.99,0.00028493,2]
[400683040,1767778275854,-4613.91,0.00028493,2]
[400683041,1767778275862,-3024.23,0.00028493,2]
[400683042,1767778275872,-418.81895423,0.00028493,2]
[400683043,1767778275881,-500.0,0.00028493,2]
[400683044,1767778275890,-642.55608894,0.00028493,2]
[400683045,1767778275899,-927.69,0.00028493,2]
[400683046,1767778275909,-500.0,0.00028493,2]
[400683047,1767778275919,-500.0,0.00028493,2]
[400683048,1767778275930,-622.55298137,0.00028493,2]
[400683049,1767778275941,-500.0,0.00028493,2]
[400683050,1767778275951,-438.24721319,0.00028493,2]
[400683051,1767778275961,-500.0,0.00028493,2]
[400683052,1767778275971,-500.0,0.00028493,2]
[400683053,1767778275982,-390.92977,0.00028493,7]
[400683054,1767778275992,-500.0,0.00028493,2]
[400683055,1767778276002,-390.92977,0.00028493,7]
[400683056,1767778276013,-500.0,0.00028493,2]
[400683057,1767778276023,-390.92977,0.00028493,7]
[400683058,1767778276033,-151.0,0.00028493,2]
[400683059,1767778276042,-390.92977,0.00028493,7]
[400683060,1767778276052,-717.62,0.00028493,2]
[400683061,1767778276062,-500.0,0.00028493,2]
[400683062,1767778276073,-500.0,0.00028493,2]
[400683063,1767778276082,-601.36,0.00028493,2]
[400683064,1767778276092,-500.0,0.00028493,2]
[400683065,1767778276101,-500.0,0.00028493,2]
[400683066,1767778276110,-2787.6,0.00028493,2]
[400683067,1767778276121,-612.995739,0.00028493,7]
[400683068,1767778276130,-612.995739,0.00028493,7]
[400683069,1767778276140,-500.0,0.00028493,2]
[400683070,1767778276149,-500.0,0.00028493,2]
[400683071,1767778276159,-612.995739,0.00028493,7]
[400683072,1767778276169,-500.0,0.00028493,2]
[400683073,1767778276179,-500.0,0.00028493,2]
[400683074,1767778276189,-612.995739,0.00028493,7]
[400683075,1767778276198,-500.0,0.00028493,2]
[400683076,1767778276207,-500.0,0.00028493,2]
[400683077,1767778276216,-404.42869374,0.00028493,2]
[400683078,1767778276225,-500.0,0.00028493,2]
[400683079,1767778276234,-432.4592555,0.00028493,2]
[400683080,1767778276244,-640.93883363,0.00028493,2]
[400683081,1767778276252,-500.0,0.00028493,2]
[400683082,1767778276261,-500.0,0.00028493,2]
[400683083,1767778276270,-500.0,0.00028493,2]
[400683084,1767778276280,-500.0,0.00028493,2]
[400683085,1767778276289,-200.0,0.00028493,2]
[400683086,1767778276298,-513.03176102,0.00028493,2]
[400683087,1767778276307,-1076.6,0.00028493,2]
[400683088,1767778276317,-505.05,0.00028493,2]
[400683089,1767778276326,-215.570059,0.00028493,7]
[400683090,1767778276335,-206.665209,0.00028493,7]
[400683091,1767778276344,-756.53,0.00028493,2]
[400683092,1767778276354,-215.570059,0.00028493,7]
[400683093,1767778276364,-206.665209,0.00028493,7]
[400683094,1767778276373,-206.665209,0.00028493,7]
[400683095,1767778276382,-215.570059,0.00028493,7]
[400683096,1767778276391,-206.665209,0.00028493,7]
[400683097,1767778276400,-215.570059,0.00028493,7]
[400683098,1767778276410,-634.815792,0.00028493,7]
[400683099,1767778276420,-500.0,0.00028493,2]
[400683100,1767778276428,-634.815792,0.00028493,7]
[400683101,1767778276437,-500.0,0.00028493,2]
[400683102,1767778276447,-500.0,0.00028493,2]
[400683103,1767778276457,-634.815792,0.00028493,7]
[400683104,1767778276466,-634.815792,0.00028493,7]
[400683105,1767778276475,-500.0,0.00028493,2]
[400683106,1767778276484,-500.0,0.00028493,2]
[400683107,1767778276494,-500.0,0.00028493,2]
[400683108,1767778276503,-500.0,0.00028493,2]
[400683109,1767778276516,-249.06198382,0.00028493,2]
[400683110,1767778276526,-836.4,0.00028493,2]
[400683111,1767778276536,-298.315005,0.00028493,7]
[400683112,1767778276544,-298.315005,0.00028493,7]
[400683113,1767778276556,-853.68,0.00028493,2]
[400683114,1767778276565,-689.83,0.00028493,2]
[400683115,1767778276574,-298.315005,0.00028493,7]
[400683116,1767778276583,-500.0,0.00028493,2]
[400683117,1767778276592,-298.315005,0.00028493,7]
[400683118,1767778276601,-500.0,0.00028493,2]
[400683119,1767778276611,-500.0,0.00028493,2]
[400683120,1767778276621,-500.0,0.00028493,2]
[400683121,1767778276631,-500.0,0.00028493,2]
[400683122,1767778276641,-410.66118175,0.00028493,2]
[400683123,1767778276652,-500.0,0.00028493,2]
[400683124,1767778276661,-500.0,0.00028493,2]
[400683125,1767778276671,-500.0,0.00028493,2]
[400683126,1767778276680,-500.0,0.00028493,2]
[400683127,1767778276690,-500.0,0.00028493,2]
[400683128,1767778276700,-500.0,0.00028493,2]
[400683129,1767778276709,-373.39371197,0.00028493,2]
[400683130,1767778276718,-690.11,0.00028493,2]
[400683131,1767778276727,-500.0,0.00028493,2]
[400683132,1767778276737,-500.0,0.00028493,2]
[400683133,1767778276746,-518.11840483,0.00028493,2]
[400683134,1767778276756,-500.0,0.00028493,2]
[400683135,1767778276765,-500.0,0.00028493,2]
[400683136,1767778276775,-500.0,0.00028493,2]
[400683137,1767778276785,-500.0,0.00028493,2]
[400683138,1767778276794,-500.0,0.00028493,2]
[400683139,1767778276803,-731.35,0.00028493,2]
[400683140,1767778276812,-3088.57,0.00028493,2]
[400683141,1767778276826,-850.0,0.00028493,5]
[400683142,1767778276836,-1345.06654584,0.00028493,5]
[400683143,1767778276846,-350.0,0.00028493,5]
[400683144,1767778276855,-286.8,0.000285,7]
[400683145,1767778276865,-146947.85475378,0.000285,7]
[400683146,1767778277006,-151.0,0.00028525,7]
[400683147,1767778277015,-209.524359,0.00028525,7]
[400683148,1767778277025,-209.524359,0.00028525,7]
[400683149,1767778277034,-209.524359,0.00028525,7]
[400683150,1767778277044,-209.524359,0.00028525,7]
[400683151,1767778277053,-151.0,0.00028525,7]
[400683152,1767778277064,-241.004676,0.00028525,7]
[400683153,1767778277074,-241.004676,0.00028525,7]
[400683154,1767778277084,-241.004676,0.00028525,7]
[400683155,1767778277093,-241.004676,0.00028525,7]
[400683156,1767778277102,-186.329815,0.00028525,7]
[400683157,1767778277112,-530.111159,0.00028525,7]
[400683158,1767778277122,-186.329815,0.00028525,7]
[400683159,1767778277132,-530.111159,0.00028525,7]
[400683161,1767778277141,-225.672265,0.00028525,7]
[400683162,1767778277150,-186.329815,0.00028525,7]
[400683163,1767778277159,-225.672265,0.00028525,7]
[400683164,1767778277169,-530.111159,0.00028525,7]
[400683165,1767778277179,-186.329815,0.00028525,7]
[400683166,1767778277189,-225.672265,0.00028525,7]
[400683167,1767778277199,-530.111159,0.00028525,7]
[400683168,1767778277209,-225.672265,0.00028525,7]
[400683169,1767778277218,-151.0,0.00028525,7]
[400683170,1767778277228,-218.702509,0.00028525,7]
[400683171,1767778277237,-218.702509,0.00028525,7]
[400683172,1767778277247,-218.702509,0.00028525,7]
[400683173,1767778277257,-218.702509,0.00028525,7]
[400683174,1767778277266,-1347.0,0.00028525,2]
[400683175,1767778277276,-160.35,0.0002862,30]
[400683176,1767778277285,-1346.0,0.00028695,2]
[400683177,1767778277295,-15924.41,0.000287,3]
[400683178,1767778277305,-26870.27186945,0.0002876,2]
[400683179,1767778277315,-28361.51006566,0.0002876,20]
[400683180,1767778277325,-4000.0,0.0002876,5]
[400683181,1767778277334,-19134.21875192,0.0002876,2]
[400683182,1767778277343,-500.0,0.00028766,7]
[400683183,1767778277353,-5597.0348848,0.00028767,2]
[400683184,1767778277364,-500.0,0.00028767,2]
[400683185,1767778277372,-500.0,0.00028767,2]
[400683186,1767778277382,-836.74,0.00028767,2]
[400683187,1767778277392,-500.0,0.00028767,2]
[400683188,1767778277402,-500.0,0.00028767,2]
[400683189,1767778277411,-500.0,0.00028767,2]
[400683190,1767778277421,-292.25444608,0.00028767,2]
[400683191,1767778277431,-500.0,0.00028767,2]
[400683192,1767778277440,-500.0,0.00028767,2]
[400683193,1767778277449,-500.0,0.00028767,2]
[400683194,1767778277459,-500.0,0.00028767,2]
[400683195,1767778277468,-500.0,0.00028767,2]
[400683196,1767778277478,-500.0,0.00028767,2]
[400683197,1767778277488,-500.0,0.00028767,2]
[400683198,1767778277497,-198.57134619,0.00028767,2]
[400683199,1767778277508,-301.15409314,0.00028767,2]
[400683200,1767778277522,-500.0,0.00028767,2]
[400683201,1767778277531,-299.58088726,0.00028767,2]
[400683202,1767778277541,-192.34753307,0.00028767,2]
[400683203,1767778277551,-500.0,0.00028767,2]
[400683204,1767778277560,-548.79,0.00028767,2]
[400683205,1767778277569,-454.31130576,0.00028767,2]
[400683206,1767778277578,-955.54322189,0.00028767,2]
[400683207,1767778277590,-500.0,0.00028767,2]
[400683208,1767778277599,-500.0,0.00028767,2]
[400683209,1767778277608,-3822.17288758,0.00028767,2]
[400683210,1767778277618,-8599.88899704,0.00028767,2]
[400683211,1767778277628,-500.0,0.00028767,2]
[400683212,1767778277637,-512.01473641,0.00028767,2]
[400683213,1767778277647,-500.0,0.00028767,2]
[400683214,1767778277656,-500.0,0.00028767,2]
[400683215,1767778277666,-449.28664847,0.00028767,2]
[400683216,1767778277677,-332.54570766,0.00028767,2]
[400683217,1767778277686,-500.0,0.00028767,2]
[400683218,1767778277696,-617.61281973,0.00028767,2]
[400683219,1767778277705,-500.0,0.00028767,2]
[400683220,1767778277715,-500.0,0.00028767,2]
[400683221,1767778277724,-500.0,0.00028767,2]
[400683222,1767778277734,-500.0,0.00028767,2]
[400683223,1767778277743,-500.0,0.00028767,2]
[400683224,1767778277753,-500.0,0.00028767,2]
[400683225,1767778277762,-913.08,0.00028767,2]
[400683226,1767778277772,-414.66991309,0.00028767,2]
[400683227,1767778277781,-575.65250457,0.00028767,2]
[400683228,1767778277791,-500.0,0.00028767,2]
[400683229,1767778277799,-599.79697724,0.00028767,2]
[400683230,1767778277808,-557.84,0.00028767,2]